[Event "Czech Extraliga 2023-24"]
[Site "Czech Republic"]
[Date "2024.04.06"]
[Round "10.1"]
[White "Haring, Filip"]
[Black "Korobov, Anton"]
[Result "0-1"]
[ECO "B51"]
[WhiteElo "2463"]
[BlackElo "2651"]
[Annotator "RC"]
[PlyCount "96"]
[EventDate "2023.10.14"]
[EventCountry "CZE"]
[SourceTitle "playchess.com"]
[Source "ChessBase"]
[SourceQuality "1"]
[TimeControl "40/5400+30:1800+30"]

1. e4 {[%emt 0:00:05]} c5 {[%emt 0:00:08]} 2. Nf3 {[%emt 0:00:12]} d6 {[%emt 0:00:06]} 3. Bb5+ {[%emt 0:00:37]} Nd7 {[%emt 0:00:06]} 4. c3 {[%emt 0:00:19]} Ngf6 {[%emt 0:00:43]} 5. Qe2 {[%emt 0:00:15]} a6 {[%emt 0:00:24]} 6. Ba4 {[%emt 0:00:10]} e6 {[%emt 0:00:17]} 7. O-O {[%emt 0:00:55]} Be7 {[%emt 0:00:16]} 8. d4 {[%emt 0:01:21]} b5 {[%emt 0:02:08]} 9. Bc2 {[%emt 0:00:41]} Bb7 {[%emt 0:00:09]} 10. Re1 {[%emt 0:01:07]} cxd4 {[%emt 0:10:53]} 11. cxd4 {[%emt 0:00:17]} O-O {[%emt 0:00:07]} 12. a4 {[%emt 0:09:42]} Qb6 {[%emt 0:11:34]} 13. Bd3 {[%emt 0:09:37]} Rfc8 {[%emt 0:04:21]} 14. Bf4 {[%emt 0:17:43]} bxa4 {[%emt 0:03:56]} 15. Rxa4 {[%emt 0:04:00]} d5 {[%emt 0:03:54]} 16. e5 {[%emt 0:01:04]} Ne4 {[%emt 0:00:21]} 17. Ra1 {[%emt 0:08:31]} a5 {[%emt 0:01:44]} 18. Nbd2 {[%emt 0:03:12]} Nxd2 {[%emt 0:01:24]} 19. Bxd2 {[%emt 0:00:25]} a4 {[%emt 0:02:50]} 20. h4 {[%emt 0:09:05]} Ba6 {[%emt 0:02:09]} 21. h5 {[%emt 0:08:39]} Bc4 {[%emt 0:05:23]} 22. Bxc4 {[%emt 0:05:35]} dxc4 {[%emt 0:00:35]} 23. Qe4 {[%emt 0:01:34]} Qd8 {[%emt 0:21:02]} 24. Qg4 {[%emt 0:01:54]} Nb6 {[%emt 0:01:03]} 25. Ng5 {[%emt 0:04:18]} Nd5 {[%emt 0:04:46]} 26. Ne4 {[%emt 0:01:04]} Rcb8 {[%emt 0:01:12]} 27. Ra2 {[%emt 0:05:49]} Rb3 {[%emt 0:10:40]} 28. Rc1 {[%emt 0:01:15]} a3 {[%emt 0:05:34]} 29. bxa3 {[%emt 0:00:33]} Rc8 {[%emt 0:00:49]} 30. Nc5 {[%emt 0:03:44]} Bxc5 {[%emt 0:00:38]} 31. dxc5 {[%emt 0:00:03]} c3 {[%emt 0:00:13]} 32. Bg5 {[%emt 0:00:12]} Qf8 {[%emt 0:00:40]} 33. h6 {[%emt 0:01:25]} Rxc5 {[%emt 0:01:35]} 34. hxg7 {[%emt 0:00:49]} Qxg7 {[%emt 0:00:11]} 35. Qh4 {[%emt 0:00:23]} Rc8 {[%emt 0:01:57]} 36. Re2 {[%emt 0:00:39]} Kh8 {[%emt 0:01:19]} 37. Rd1 {[%emt 0:01:12]} Qg6 {[%emt 0:02:02]} 38. Rxd5 {[%emt 0:00:32]} exd5 {[%emt 0:00:06]} 39. Bf6+ {[%emt 0:00:26]} Kg8 {[%emt 0:00:02]} 40. Re3 {[%emt 0:00:33]} c2 {[%emt 0:01:12]} 41. Rxb3 {[%emt 0:30:07]} c1=Q+ {[%emt 0:30:09]} 42. Kh2 {[%emt 0:00:02]} Qch6 {[%emt 0:00:46]} 43. Rg3 {[%emt 0:00:09]} Qxh4+ {[%emt 0:00:17]} 44. Bxh4 {[%emt 0:00:02]} d4 {[%emt 0:00:24]} 45. Rxg6+ {[%emt 0:00:47]} fxg6 {[%emt 0:00:00]} 46. Kg3 {[%emt 0:00:00]} Rc1 {[%emt 0:00:00]} 47. Kf4 {[%emt 0:00:00]} Re1 {[%emt 0:00:00]} 48. f3 {[%emt 0:00:00]} Re2 {[%emt 0:00:00]} 0-1

[Event "Czech Extraliga 2023-24"]
[Site "Czech Republic"]
[Date "2024.04.06"]
[Round "10.2"]
[White "Samunenkov, Ihor"]
[Black "Gonda, Laszlo"]
[Result "0-1"]
[ECO "E08"]
[WhiteElo "2548"]
[BlackElo "2480"]
[Annotator "RC"]
[PlyCount "68"]
[EventDate "2023.10.14"]
[EventCountry "CZE"]
[SourceTitle "playchess.com"]
[Source "ChessBase"]
[SourceQuality "1"]
[TimeControl "40/5400+30:1800+30"]

1. d4 {[%emt 0:00:07]} Nf6 {[%emt 0:00:07]} 2. c4 {[%emt 0:00:11]} e6 {[%emt 0:00:03]} 3. g3 {[%emt 0:00:10]} Bb4+ {[%emt 0:01:05]} 4. Bd2 {[%emt 0:00:10]} Be7 {[%emt 0:01:16]} 5. Bg2 {[%emt 0:00:08]} d5 {[%emt 0:00:03]} 6. Nf3 {[%emt 0:00:14]} Nbd7 {[%emt 0:00:07]} 7. O-O {[%emt 0:00:21]} O-O {[%emt 0:00:08]} 8. Qc2 {[%emt 0:00:14]} c6 {[%emt 0:00:31]} 9. Bf4 {[%emt 0:00:11]} b6 {[%emt 0:04:08]} 10. cxd5 {[%emt 0:00:28]} cxd5 {[%emt 0:03:44]} 11. Rc1 {[%emt 0:00:09]} Bb7 {[%emt 0:15:54]} 12. Bc7 {[%emt 0:00:11]} Qe8 {[%emt 0:01:53]} 13. Qb3 {[%emt 0:00:29]} Rc8 {[%emt 0:29:46]} 14. Na3 {[%emt 0:00:23]} Ne4 {[%emt 0:16:12]} 15. Nb5 {[%emt 0:01:43]} a6 {[%emt 0:06:28]} 16. Na7 {[%emt 0:12:25]} Ra8 {[%emt 0:02:23]} 17. Nc6 {[%emt 0:24:32]} Bxc6 {[%emt 0:01:06]} 18. Rxc6 {[%emt 0:02:40]} Ndc5 {[%emt 0:00:43]} 19. Qxb6 {[%emt 0:05:48]} Na4 {[%emt 0:00:08]} 20. Qb7 {[%emt 0:00:09]} Ra7 {[%emt 0:00:18]} 21. Qxa7 {[%emt 0:00:15]} Qxc6 {[%emt 0:00:06]} 22. Bf4 {[%emt 0:37:36]} Bf6 {[%emt 0:00:22]} 23. Rc1 {[%emt 0:01:13]} Qb5 {[%emt 0:00:09]} 24. Bf1 {[%emt 0:01:05]} Nxb2 {[%emt 0:02:17]} 25. Rc7 {[%emt 0:08:11]} Nc4 {[%emt 0:01:58]} 26. Rb7 {[%emt 0:01:42]} Qa5 {[%emt 0:02:37]} 27. Rb8 {[%emt 0:00:28]} g5 {[%emt 0:00:23]} 28. Bc7 {[%emt 0:01:55]} Qxa2 {[%emt 0:02:46]} 29. Ne5 {[%emt 0:00:54]} Bxe5 {[%emt 0:01:34]} 30. Bxe5 {[%emt 0:00:39]} Nxe5 {[%emt 0:00:29]} 31. dxe5 {[%emt 0:00:47]} Qa1 {[%emt 0:01:36]} 32. e3 {[%emt 0:00:30]} Qa2 {[%emt 0:00:44]} 33. Rxf8+ {[%emt 0:00:26]} Kxf8 {[%emt 0:00:02]} 34. Qb8+ {[%emt 0:00:21]} Kg7 {[%emt 0:00:04]} 0-1

[Event "Czech Extraliga 2023-24"]
[Site "Czech Republic"]
[Date "2024.04.06"]
[Round "10.2"]
[White "Kempinski, Robert"]
[Black "Mihok, Oliver"]
[Result "1-0"]
[ECO "E67"]
[WhiteElo "2547"]
[BlackElo "2544"]
[Annotator "TA"]
[PlyCount "101"]
[EventDate "2023.10.14"]
[EventCountry "CZE"]
[SourceTitle "playchess.com"]
[Source "ChessBase"]
[SourceQuality "1"]
[TimeControl "40/5400+30:1800+30"]

{[%evp 18,101,36,32,50,15,40,54,65,50,88,70,202,199,191,213,193,205,206,203,214,199,243,177,173,157,247,241,315,300,314,306,487,379,392,360,381,352,502,496,541,482,549,551,557,561,631,526,681,692,656,587,645,652,698,699,681,304,301,318,316,291,701,642,647,690,853,824,874,887,793,777,1555,1396,6512,1578,2233,1756,2068,1874,1629,1499,29979,29980,29978,29979]} 1. d4 {[%emt 0:00:08]} Nf6 {[%emt 0:00:06]} 2. Nf3 {[%emt 0:00:45]} g6 {[%emt 0:00:07]} 3. c4 {[%emt 0:00:51]} Bg7 {[%emt 0:00:06]} 4. g3 {[%emt 0:00:48]} O-O {[%emt 0:00:31]} 5. Bg2 {[%emt 0:00:19]} d6 {[%emt 0:00:34]} 6. O-O {[%emt 0:00:28]} Nbd7 {[%emt 0:00:12]} 7. Nc3 {[%emt 0:02:02]} e5 {[%emt 0:00:08]} 8. Qc2 {[%emt 0:00:50]} exd4 {[%emt 0:04:29]} 9. Nxd4 {[%emt 0:00:15]} Re8 {[%emt 0:04:16]} 10. b3 {[%emt 0:09:46]} a5 {[%emt 0:02:22] E67: King's Indian: Fianchetto: 6...Nbd7.} 11. Ba3 {[%emt 0:04:58]} Nc5 {[%emt 0:10:03]} 12. Rad1 {[%emt 0:02:14] Hoping for Bxc5.} Bd7 $146 {[%emt 0:00:50]} ({Predecessor:} 12... Nfd7 13. Ndb5 Ne6 14. Rd2 Ndc5 15. e4 Na6 16. Bb2 Nec5 17. Qd1 f5 18. Re1 fxe4 19. Nxe4 Bxb2 20. Rxb2 Bf5 21. Nxc5 Rxe1+ 22. Qxe1 Nxc5 23. Bd5+ Kh8 24. Qc3+ {1-0 Krysa,L (2516)-Guerra Rivera,S (2344) Barcelona Sants op 21st 2019 (3)}) 13. Ndb5 {[%emt 0:07:21] Threatens to win with Bxc5.} Qb8 {[%emt 0:07:28][%cal Oa5a4]} 14. Rfe1 {[%emt 0:03:39]} Bf8 {[%emt 0:05:28] [#]} (14... a4 $14) 15. Bxc5 $1 $18 {[%emt 0:04:08]} dxc5 {[%emt 0:04:02]} 16. Ne4 {[%emt 0:00:19]} Rxe4 {[%emt 0:10:01]} 17. Bxe4 {[%emt 0:00:28]} c6 {[%emt 0:00:24]} 18. Nc3 {[%emt 0:02:15]} Qe5 {[%emt 0:02:44]} 19. Bg2 {[%emt 0:03:05]} Re8 {[%emt 0:03:07]} 20. Ne4 {[%emt 0:02:23]} Nxe4 {[%emt 0:02:09]} 21. Qxe4 {[%emt 0:03:05]} (21. Rxd7 $6 Qf5 22. Bxe4 Qxd7 $11) 21... Qh5 {[%emt 0:00:52]} (21... Qc7 $16 22. Qh4 Bc8) 22. Qf4 $18 {[%emt 0:04:07]} Bf5 {[%emt 0:01:12]} 23. Bf3 {[%emt 0:01:27]} Qh3 {[%emt 0:01:10]} 24. Qc7 {[%emt 0:01:29]} g5 {[%emt 0:06:04]} (24... Bc8 $142 25. Rd8 (25. Qxa5 Be7 $18) 25... Rxd8) 25. Rd8 {[%emt 0:04:15]} ({But not} 25. Qxa5 Be7 26. Qc7 Bc8 $18) 25... Rxd8 {[%emt 0:02:30]} 26. Qxd8 {[%emt 0:00:07]} Qh6 {[%emt 0:00:41]} 27. Qxa5 {[%emt 0:03:06]} Qf6 {[%emt 0:00:39]} (27... g4 $142 28. Bg2 Qd6) 28. Rd1 $18 {[%emt 0:06:49]} Kg7 {[%emt 0:03:39]} 29. Qd8 {[%emt 0:03:17] Wards off Bd6} Be7 {[%emt 0:00:35]} 30. Qc7 {[%emt 0:00:15]} Qe6 {[%emt 0:06:32]} 31. e4 {[%emt 0:02:28]} Bh3 {[%emt 0:01:12]} 32. Qxb7 {[%emt 0:03:24]} Qf6 {[%emt 0:02:17]} 33. Bg2 {[%emt 0:02:14]} Bg4 {[%emt 0:00:26]} 34. Rf1 {[%emt 0:01:08]} Bd8 {[%emt 0:02:49]} 35. h3 {[%emt 0:02:31]} Be2 {[%emt 0:01:19]} 36. Re1 {[%emt 0:00:43]} Qb2 {[%emt 0:00:02]} 37. Qxc6 {[%emt 0:21:33]} (37. Bf1 $142 Bxf1 38. Kxf1 (38. Rxf1 Qxa2 39. Qxc6 Qxb3 $18)) 37... Qd2 $18 {[%emt 0:01:55]} 38. Rxe2 {[%emt 0:00:00]} Qxe2 {[%emt 0:00:04]} 39. Qxc5 {[%emt 0:00:00]} Qxa2 $2 {[%emt 0:02:29]} (39... Qe1+ 40. Kh2 h5) 40. Qd4+ $18 {[%emt 0:00:00]} Bf6 {[%emt 0:00:04]} 41. e5 {[%emt 0:16:43]} Be7 {[%emt 0:30:01]} 42. e6+ {[%emt 0:00:21]} f6 {[%emt 0:00:03]} 43. Qd7 {[%emt 0:00:31]} Qa3 {[%emt 0:01:45]} 44. Qe8 {[%emt 0:01:28]} Kh6 {[%emt 0:02:26]} 45. Bf3 {[%emt 0:05:02] Qh5+ would now be deadly.} Qb4 {[%emt 0:04:30]} 46. Kg2 {[%emt 0:02:15] Intending Qh5+ and mate.} f5 {[%emt 0:07:17]} 47. Qh5+ {[%emt 0:00:50]} Kg7 {[%emt 0:00:08]} 48. Qf7+ {[%emt 0:00:06]} Kh6 {[%emt 0:00:15]} 49. Qxf5 {[%emt 0:00:24] White wants to mate with Be4.} Qc3 {[%emt 0:01:16]} 50. Be4 {[%emt 0:01:42][%csl Ge4][%cal Rf5h7]} Qg7 {[%emt 0:00:06]} 51. c5 {[%emt 0:00:27]} 1-0

[Event "Czech Extraliga 2023-24"]
[Site "Czech Republic"]
[Date "2024.04.06"]
[Round "10.2"]
[White "Kobo, Ori"]
[Black "Baidetskyi, Valentin"]
[Result "1/2-1/2"]
[ECO "E68"]
[WhiteElo "2530"]
[BlackElo "2485"]
[Annotator "TA"]
[PlyCount "85"]
[EventDate "2023.10.14"]
[EventCountry "CZE"]
[SourceTitle "playchess.com"]
[Source "ChessBase"]
[SourceQuality "1"]
[TimeControl "40/5400+30:1800+30"]

{[%evp 20,85,54,56,53,50,56,63,39,36,51,54,62,62,55,54,35,43,64,0,0,0,0,0,0,0,-23,0,-18,-19,13,0,29,25,21,8,8,8,47,43,52,0,0,0,0,0,0,0,14,5,25,8,9,8,8,29,8,19,31,14,83,40,54,0,0,0,0,0]} 1. Nf3 {[%emt 0:00:12]} Nf6 {[%emt 0:00:05]} 2. c4 {[%emt 0:00:22]} g6 {[%emt 0:00:01]} 3. g3 {[%emt 0:00:23]} Bg7 {[%emt 0:00:06]} 4. Bg2 {[%emt 0:00:17]} O-O {[%emt 0:00:04]} 5. Nc3 {[%emt 0:00:29]} d6 {[%emt 0:00:01]} 6. d4 {[%emt 0:00:12]} Nbd7 {[%emt 0:00:04]} 7. O-O {[%emt 0:00:41]} e5 {[%emt 0:00:18]} 8. e4 {[%emt 0:00:30]} exd4 {[%emt 0:00:05]} 9. Nxd4 {[%emt 0:00:08]} Re8 {[%emt 0:00:03]} 10. Be3 {[%emt 0:01:05]} Nc5 {[%emt 0:03:36]} 11. f3 {[%emt 0:00:29]} Nfd7 {[%emt 0:04:15]} 12. Qd2 {[%emt 0:04:25]} c6 {[%emt 0:05:01]} 13. Rad1 {[%emt 0:05:24]} a5 {[%emt 0:05:13] White is slightly better.} 14. b3 {[%emt 0:06:49]} Qe7 {[%emt 0:09:12][%cal Of7f5]} 15. Rfe1 {[%emt 0:15:41]} Ne5 {[%emt 0:09:47]} 16. Qc2 {[%emt 0:04:43]} a4 {[%emt 0:08:36]} 17. h3 {[%emt 0:00:24]} (17. bxa4 Nxc4 18. Bf2 Nb6 $11) (17. Nxa4 Nxa4 18. bxa4 c5) 17... axb3 {[%emt 0:00:04]} 18. axb3 {[%emt 0:00:13]} Na6 {[%emt 0:01:55]} 19. f4 {[%emt 0:27:45]} (19. Qa2 $1 $14) 19... Nb4 $11 {[%emt 0:08:05]} 20. Qb1 {[%emt 0:09:57]} Nd7 {[%emt 0:00:23]} 21. Bf2 {[%emt 0:00:58]} Nc5 {[%emt 0:03:14]} 22. Na4 {[%emt 0:02:48]} Nxa4 {[%emt 0:04:38]} 23. bxa4 {[%emt 0:00:04] Threatens to win with Nf5.} Na6 {[%emt 0:00:20][%cal Bb4a6,Ba6c5,Bc5b3][%mdl 32]} 24. a5 {[%emt 0:05:54]} Nc5 {[%emt 0:03:18]} 25. Qb4 {[%emt 0:00:05][%cal Oe4e5]} Qc7 {[%emt 0:14:28]} 26. Nb3 {[%emt 0:05:37]} Nxb3 {[%emt 0:03:39]} 27. Bb6 {[%emt 0:00:06]} Qe7 {[%emt 0:00:18][%cal Og7d4] [#] ...Bd4+! is the strong threat.} 28. Qxb3 {[%emt 0:00:06]} h5 {[%emt 0:01:01]} (28... Be6 $5) 29. Qd3 {[%emt 0:01:06]} Be6 {[%emt 0:05:43]} 30. f5 {[%emt 0:01:44]} ({Much weaker is} 30. Qxd6 Bc3 31. c5 (31. Qxe7 Rxe7 32. Re3 Bxa5 $15) 31... Bxa5 32. Qxe7 Rxe7 $11) (30. Rf1 $14) 30... Bc8 {[%emt 0:00:12]} 31. fxg6 {[%emt 0:01:03]} fxg6 {[%emt 0:02:24]} 32. Qxd6 {[%emt 0:00:34]} Qxd6 {[%emt 0:01:29]} 33. Rxd6 {[%emt 0:00:02]} Be6 {[%emt 0:00:10]} 34. Rc1 {[%emt 0:03:35]} Bf8 {[%emt 0:01:23]} 35. Rd3 {[%emt 0:01:38]} Bb4 {[%emt 0:01:30]} 36. Rb3 {[%emt 0:00:06]} Bxa5 {[%emt 0:03:15]} 37. Bxa5 {[%emt 0:00:06]} Rxa5 {[%emt 0:00:03]} 38. Rxb7 {[%emt 0:00:06]} Rc5 {[%emt 0:00:03]} 39. Rc7 {[%emt 0:03:38]} Bxc4 {[%emt 0:02:03]} (39... Rf8 $11 {keeps the balance.}) 40. Bf1 {[%emt 0:00:31] White is more active.} Rxe4 {[%emt 0:00:25]} 41. Ra1 {[%emt 0:07:32]} (41. Ra7 $14) 41... Bf7 {[%emt 0:06:23]} 42. Ra8+ {[%emt 0:07:52]} Re8 {[%emt 0:01:17]} 43. Raa7 {[%emt 0:00:39] Weighted Error Value: White=0.11 (very precise) /Black=0.10 (very precise) .  Mistake:       	White=3     	Black=1      Inaccurate:     	White=1     	Black=3      OK:         	White=12    	Black=15     Best:        	White=2     	Black=1} 1/2-1/2

[Event "Czech Extraliga 2023-24"]
[Site "Czech Republic"]
[Date "2024.04.06"]
[Round "10.2"]
[White "Antoniewski, Rafal"]
[Black "Michalik, Peter"]
[Result "0-1"]
[ECO "E06"]
[WhiteElo "2461"]
[BlackElo "2571"]
[Annotator "TA"]
[PlyCount "148"]
[EventDate "2023.10.14"]
[EventCountry "CZE"]
[SourceTitle "playchess.com"]
[Source "ChessBase"]
[SourceQuality "1"]
[TimeControl "40/5400+30:1800+30"]

{[%evp 13,148,0,0,0,0,0,0,-3,-7,0,5,1,0,0,0,0,0,-5,0,0,0,0,0,0,0,0,0,0,0,0,0,0,0,0,0,-7,0,-14,-16,-12,-13,-27,-10,-14,-10,-16,-16,-25,-15,-38,-41,-42,-38,-35,-39,-43,-45,-54,-35,-51,-45,-48,-47,-44,-20,-56,0,0,0,0,0,0,0,0,0,0,0,0,0,0,0,-49,-51,-83,-94,-101,-130,-130,-130,-130,-130,-123,-100,-170,-184,-175,-145,-162,-156,-154,-163,-160,-159,-156,-132,-148,-144,-155,-147,-146,-163,-155,-151,-329,-311,-381,-377,-407,-416,-357,-372,-556,-514,-682,-635,-1390,-913,-1387,-1422,-12800,-12798,-12805,-12804,-5085,-5061,-4952,-4637]} 1. c4 {[%emt 0:00:06]} e6 {[%emt 0:00:28]} 2. Nf3 {[%emt 0:00:17]} d5 {[%emt 0:00:20]} 3. d4 {[%emt 0:00:15]} Nf6 {[%emt 0:00:09]} 4. Qc2 {[%emt 0:00:21]} Be7 {[%emt 0:03:32]} 5. g3 {[%emt 0:01:39]} O-O {[%emt 0:01:14]} 6. Bg2 {[%emt 0:00:29]} c5 {[%emt 0:00:17]} 7. dxc5 {[%emt 0:07:12]} Qa5+ {[%emt 0:01:18]} 8. Bd2 {[%emt 0:00:54]} Qxc5 {[%emt 0:00:09]} 9. Na3 {[%emt 0:00:52]} Nc6 {[%emt 0:05:39]} 10. cxd5 {[%emt 0:01:37] The position is equal.} Qxc2 {[%emt 0:05:51]} 11. Nxc2 {[%emt 0:00:07]} Nxd5 {[%emt 0:00:04]} 12. O-O {[%emt 0:00:48]} Bf6 {[%emt 0:01:01]} 13. Rab1 {[%emt 0:03:24]} Rd8 {[%emt 0:04:21]} 14. Rfd1 {[%emt 0:15:20]} e5 {[%emt 0:06:49]} 15. Ng5 {[%emt 0:09:04]} h6 {[%emt 0:05:13]} 16. Ne4 {[%emt 0:00:06][%cal Od2h6]} Be7 {[%emt 0:00:06]} 17. Ne3 {[%emt 0:16:42] Threatens to win with Nxd5.} Be6 {[%emt 0:02:42]} 18. Nxd5 {[%emt 0:00:23]} Rxd5 {[%emt 0:03:00]} 19. Nc3 {[%emt 0:03:34]} Rd7 {[%emt 0:00:36]} 20. Bxc6 {[%emt 0:05:11]} bxc6 {[%emt 0:00:07]} 21. Be3 {[%emt 0:00:11]} Rad8 {[%emt 0:01:50]} 22. Rxd7 {[%emt 0:02:06]} Rxd7 {[%emt 0:04:15]} 23. Rc1 {[%emt 0:00:58]} c5 {[%emt 0:01:11]} 24. Ne4 {[%emt 0:02:50]} c4 {[%emt 0:04:05]} 25. Nd2 {[%emt 0:02:55]} Rc7 {[%emt 0:01:45]} 26. Rc2 {[%emt 0:05:25]} a6 {[%emt 0:05:18]} 27. Bb6 {[%emt 0:02:44]} Rc8 {[%emt 0:08:40]} (27... Rb7 $5 28. Ba5 $8 Rb5 $15) 28. Ba5 {[%emt 0:00:16]} f6 {[%emt 0:00:10]} 29. Kf1 {[%emt 0:00:25]} Kf7 {[%emt 0:00:34]} 30. Ke1 {[%emt 0:03:19]} g5 {[%emt 0:00:27]} 31. Kd1 {[%emt 0:02:22]} g4 {[%emt 0:00:21]} 32. e4 {[%emt 0:01:22]} h5 {[%emt 0:01:55]} 33. Ke2 {[%emt 0:00:38]} Rb8 {[%emt 0:01:32]} 34. a3 {[%emt 0:07:03]} Rb5 {[%emt 0:07:08]} 35. Bc3 {[%emt 0:00:05]} a5 {[%emt 0:01:11]} 36. Rc1 {[%emt 0:02:36]} a4 {[%emt 0:01:40]} 37. Nf1 {[%emt 0:03:14]} f5 {[%emt 0:01:10]} 38. Ne3 {[%emt 0:00:43]} fxe4 {[%emt 0:02:24]} 39. Rd1 {[%emt 0:00:13]} Bc5 {[%emt 0:03:21]} (39... Kf6 $15) 40. Nc2 $11 {[%emt 0:00:12]} Bb6 {[%emt 0:01:35][%cal Oe4e3]} 41. Nb4 {[%emt 0:30:54]} Ke7 {[%emt 0:44:28]} 42. Nc6+ {[%emt 0:00:00]} Kf6 {[%emt 0:00:00]} 43. Nb4 {[%emt 0:00:00]} Bc7 {[%emt 0:00:00]} 44. Na6 {[%emt 0:00:00]} Ba5 {[%emt 0:00:00]} 45. Nb4 {[%emt 0:00:00]} Bxb4 {[%emt 0:00:00]} 46. Bxb4 {[%emt 0:00:00][%mdl 4096] Endgame. KRB-KRB} Bd5 {[%emt 0:00:00]} 47. Bc3 {[%emt 0:00:00]} (47. Ke3 $11 {feels stronger.}) 47... Ke6 $15 {[%emt 0:00:00]} 48. h4 {[%emt 0:00:00]} gxh3 {[%emt 0:00:00]} 49. Rh1 {[%emt 0:00:00]} Kf6 {[%emt 0:00:00] Strongly threatening ...Be6.} 50. Rxh3 {[%emt 0:00:00]} Be6 {[%emt 0:00:00]} 51. Rh1 {[%emt 0:00:00][%cal Oe2e3]} Bg4+ $1 {[%emt 0:00:00]} 52. Kd2 {[%emt 0:00:00]} Rd5+ {[%emt 0:00:00]} 53. Kc2 {[%emt 0:00:00] [#]} (53. Kc1 $17) 53... e3 $1 $19 {[%emt 0:00:00][%mdl 512]} 54. fxe3 {[%emt 0:00:00] [#]} Kf5 $1 {[%emt 0:00:00]} 55. Rf1+ {[%emt 0:00:00]} Ke4 {[%emt 0:00:00]} 56. Bd2 {[%emt 0:00:00]} Bf3 {[%emt 0:00:00]} 57. Rf2 {[%emt 0:00:00]} Rd3 {[%emt 0:00:00]} 58. Rh2 {[%emt 0:00:02]} Bg4 {[%emt 0:00:00]} 59. Rf2 {[%emt 0:00:05] [#]} Bf5 $1 {[%emt 0:00:00] Black is more active.} 60. Kc1 {[%emt 0:00:41]} Rd7 {[%emt 0:00:23]} 61. Kc2 {[%emt 0:02:02]} Rg7 {[%emt 0:00:43]} 62. Be1 {[%emt 0:00:23]} Bg4 {[%emt 0:01:23]} (62... Kxe3+ $2 {perishes.} 63. Rxf5 e4 64. Bd2+ (64. Rxh5 Ke2 $18) 64... Ke2 65. Rxh5 $18) 63. Kc3 $2 {[%emt 0:05:04] This costs White the game.} (63. Bd2 $17 {was necessary.}) 63... Kxe3 {[%emt 0:00:31]} 64. Rf6 {[%emt 0:00:34]} Ke2 {[%emt 0:01:04]} 65. Bf2 {[%emt 0:00:10]} Bf3 {[%emt 0:01:29]} 66. Bc5 {[%emt 0:00:05]} Rxg3 {[%emt 0:00:36] aiming for ...h4.} 67. Kxc4 {[%emt 0:00:08]} (67. Rh6 {was worth a try.}) 67... h4 {[%emt 0:01:43] Black is clearly winning.} 68. Rh6 {[%emt 0:00:51]} Rg4+ {[%emt 0:00:11]} 69. Kc3 {[%emt 0:00:06]} Bd5 {[%emt 0:00:48][%csl Gd5][%cal Rg4c4]} 70. b4 {[%emt 0:00:47]} axb3 {[%emt 0:00:16]} 71. Bd6 {[%emt 0:00:03]} Rc4+ {[%emt 0:02:14]} 72. Kxb3 {[%emt 0:00:10]} Rc6+ {[%emt 0:00:09]} 73. Kb4 {[%emt 0:00:06] [#]} h3 $1 {[%emt 0:00:08][%mdl 512]} 74. Kb5 {[%emt 0:06:46]} (74. a4 e4) 74... Bf3 {[%emt 0:00:20] Weighted Error Value: White=0.05 (flawless) /Black=0.04 (flawless) .  Loses game:     	White=1     	---        Mistake:       	White=3     	Black=1      Inaccurate:     	White=3     	---        OK:         	White=30    	Black=23     Best:        	White=5     	Black=5      Strong:       	---       	Black=3      Brilliant:      	---       	Black=1} 0-1